fUSD/lending_fUSD_20241020
["ID","MTS","AMOUNT","RATE_DAILY","PERIOD"]
[340555776,1729463439157,-151.37,0.0002329,2]
[340555777,1729463439168,-151.37,0.0002329,2]
[340555778,1729463439178,-151.37,0.0002329,2]
[340555779,1729463439187,-151.37,0.0002329,2]
[340555780,1729463439197,-151.37,0.0002329,2]
[340555781,1729463439207,-151.37,0.0002329,2]
[340555782,1729463439217,-151.37,0.0002329,2]
[340555783,1729463439227,-151.37,0.0002329,2]
[340555784,1729463439236,-151.37,0.0002329,2]
[340555785,1729463439246,-151.37,0.0002329,2]
[340555786,1729463439255,-151.37,0.0002329,2]
[340555787,1729463439265,-151.37,0.0002329,2]
[340555788,1729463439274,-151.37,0.0002329,2]
[340555789,1729463439284,-151.37,0.0002329,2]
[340555790,1729463439293,-151.37,0.0002329,2]
[340555791,1729463439303,-3016.55182492,0.00023294,2]
[340555792,1729463439313,-150.0,0.00023298,2]
[340555793,1729463439323,-500.0,0.00023299,2]
[340555794,1729463439332,-631.19429039,0.00023299,2]
[340555795,1729463439342,-151.0,0.000233,2]
[340555796,1729463439351,-238.82143947,0.000233,2]
[340555797,1729463439361,-5279.38944596,0.000233,2]
[340555798,1729463439507,-72091.18524416,0.000233,16]
[340555799,1729463439524,-2445.18364595,0.000233,16]
[340555800,1729463439548,-5303.35094036,0.000233,16]
[340555801,1729463439587,-207.39289707,0.000233,16]
[340555802,1729463439598,-2011.08221718,0.000233,16]
[340555803,1729463439610,-742.11629914,0.000233,16]
[340555804,1729463439621,-277.0527081,0.000233,16]
[340555805,1729463439685,-5886.21400744,0.000233,16]
[340555810,1729463440331,-1595.46041003,0.000233,16]
[340555811,1729463440344,-107118.68483813,0.000233,16]
[340555812,1729463440355,-6766.99010001,0.000233,16]
[340555829,1729463443048,-22324.30281804,0.000233,16]
[340555831,1729463443059,-311.0061315,0.000233,16]
[340555847,1729463443209,-63140.43284535,0.000233,16]
[340555848,1729463443221,-51673.03489936,0.000233,16]
[340555850,1729463443234,-51836.61313604,0.000233,16]
[340555851,1729463443245,-5019.29999991,0.000233,16]
[340555852,1729463443256,-5021.51999993,0.000233,16]
[340555890,1729463445999,-4553.8190213,0.00016698,2]
[340555891,1729463446011,-3282.1960447,0.00016698,2]
[340555892,1729463446022,-2116.95788424,0.00016698,2]
[340555893,1729463446034,-3586.02704976,0.00016698,2]
[340555894,1729463446043,-2327.8404724,0.000233,16]
[340555895,1729463446054,-423.83166021,0.000233,16]
[340555896,1729463446083,-60156.68530401,0.000233,16]
[340555897,1729463446225,-3379.28196,0.000233,16]
[340555898,1729463446301,-5800.7172,0.000233,16]
[340555899,1729463446313,-560.82462906,0.000233,16]
[340555900,1729463446327,-8999.02981902,0.000233,16]
[340555902,1729463446339,-346.76974357,0.000233,16]
[340555904,1729463446349,-26135.86109472,0.000233,16]
[340555906,1729463446360,-33800.45091569,0.000233,16]
[340555908,1729463446378,-2686.27667552,0.000233,16]
[340555909,1729463446389,-703.371239,0.000233,16]
[340555910,1729463446400,-18311.83269936,0.000233,16]
[340555912,1729463470590,-207.39289707,0.00016698,2]
[340555917,1729463608265,167.53,0.00024922,120]
[340555918,1729463609362,500.0,0.00027,60]
[340555920,1729463755986,2200.4,0.00015,30]
[340555921,1729463842950,206.86,0.00010959,2]
[340555922,1729464108102,250.0,0.0001,2]
[340555923,1729464452138,-150.0,0.000117,2]
[340555924,1729464452158,-300.0,0.00012,2]
[340555925,1729464452179,-350.0,0.00014,2]
[340555926,1729464452200,-400.0,0.00016,2]
[340555927,1729464452220,-21364.53386001,0.00016435,2]
[340555928,1729464452239,-186.81,0.00016438,2]
[340555929,1729464452259,-150.0,0.00016658,2]
[340555930,1729464452280,-300.0,0.00016697,2]
[340555931,1729464452299,-150.0,0.00016698,2]
[340555932,1729464452318,-5885.0,0.00016698,2]
[340555933,1729464452338,-1245.0,0.00016698,2]
[340555934,1729464452356,-449.0,0.00016698,2]
[340555935,1729464452378,-560.0,0.00016698,2]
[340555936,1729464452399,-812.0,0.00016698,2]
[340555937,1729464452418,-324.24,0.00016698,2]
[340555938,1729464452438,-1432.76,0.00016698,5]
[340555939,1729464452457,-1150.0,0.00016698,2]
[340555940,1729464452476,-9999.99,0.00016698,2]
[340555941,1729464452495,-12822.261,0.00016698,2]
[340555942,1729464452514,-555.0,0.00016698,2]
[340555943,1729464452533,-1076.0,0.00016698,2]
[340555944,1729464452551,-1909.0,0.00016698,2]
[340555945,1729464452573,-3149.608,0.00016698,2]
[340555946,1729464452614,-809.0,0.00016698,2]
[340555947,1729464452654,-499.99,0.00016698,2]
[340555948,1729464452696,-206.86,0.00017592,2]
[340555949,1729464452732,-450.0,0.00018,2]
[340555950,1729464452774,-160.55,0.000188,7]
[340555951,1729464452808,-941.7,0.00019499,2]
[340555952,1729464452844,-10970.82,0.00019698,2]
[340555953,1729464452884,-207.32,0.00019698,2]
[340555954,1729464452918,-250.0,0.00019927,2]
[340555955,1729464452953,-500.0,0.0002,2]
[340555956,1729464452988,-159.18,0.00020109,2]
[340555957,1729464453023,-152.28,0.00020121,2]
[340555958,1729464453057,-250.0,0.0002017,2]
[340555959,1729464453091,-183.23,0.00020375,2]
[340555960,1729464453128,-3827.77,0.00020398,2]
[340555961,1729464453164,-250.0,0.00020759,2]
[340555962,1729464453200,-20157.8520287,0.00020788,2]
[340555963,1729464463310,156.67,0.00010959,2]
[340555964,1729464489331,2000.0,0.00015,30]
[340555965,1729464580486,2000.0,0.00015,30]
[340555966,1729464609736,600.0,0.00015,30]
[340555968,1729464632204,-881.34439713,0.0001625,30]
[340555969,1729464632222,-1118.65560287,0.0001625,30]
[340555970,1729464632236,-250.0,0.00016698,2]
[340555971,1729464632251,-220.0,0.00016698,2]
[340555972,1729464632265,-272.421,0.00016698,2]
[340555973,1729464632279,-250.0,0.00016698,2]
[340555974,1729464632293,-264.337,0.00016698,2]
[340555975,1729464632309,-163.976,0.00016698,2]
[340555976,1729464632323,-290.064,0.00016698,2]
[340555977,1729464632337,-288.714,0.00016698,2]
[340555978,1729464632351,-250.0,0.00016698,2]
[340555979,1729464632365,-310.70558879,0.000174,2]
[340555980,1729464632380,-2000.0,0.000175,30]
[340555981,1729464632394,-156.67,0.00018836,2]
[340555982,1729464632409,-894.61,0.00019599,2]
[340555983,1729464632423,-150.0,0.00019698,2]
[340555984,1729464632437,-2000.0,0.0002,30]
[340555985,1729464632452,-5191.6611,0.00020688,2]
[340555986,1729464632467,-3742.1479713,0.00020788,2]
[340555987,1729464632481,-250.0,0.00021314,2]
[340555989,1729464632495,-1616.02,0.00021341,2]
[340555992,1729464632510,-200.0,0.00021377,2]
[340555994,1729464632526,-752.24,0.00021528,2]
[340555997,1729464632541,-200.0,0.00021534,2]
[340555999,1729464632556,-150.0,0.00021553,2]
[340556001,1729464632571,-800.0,0.00021585,2]
[340556004,1729464632585,-201.21,0.00021611,2]
[340556005,1729464632600,-925.6,0.00021671,2]
[340556006,1729464632615,-894.61,0.00021863,2]
[340556007,1729464632630,-1419.01,0.00021918,2]
[340556008,1729464632645,-550.0,0.00022,2]
[340556009,1729464632659,-26717.0,0.00022046,2]
[340556010,1729464632674,-169.77,0.00022128,2]
[340556011,1729464632688,-167.53,0.00022153,2]
[340556012,1729464632703,-1000.0,0.000224,2]
[340556013,1729464632717,-183.23,0.00022412,2]
[340556014,1729464632732,-314.04,0.000226,2]
[340556015,1729464632746,-176.58,0.000226,2]
[340556016,1729464632761,-2767.7129,0.00023,2]
[340556017,1729464632779,-1979.74541089,0.000231,2]
[340556018,1729464632793,-647.43,0.0002318,3]
[340556019,1729464632807,-647.44,0.0002318,3]
[340556020,1729464632822,-7092.356,0.0002319,2]
[340556021,1729464632836,-486.3573,0.0002319,2]
[340556022,1729464632850,-445.93174206,0.0002319,2]
[340556023,1729464632863,-1994.64772429,0.000232,2]
[340556024,1729464632877,-1057.2815,0.000232,2]
[340556025,1729464632892,-426.8603,0.000232,2]
[340556026,1729464633095,-488.9524,0.000232,2]
[340556027,1729464633123,-5050.0,0.000232,27]
[340556028,1729464633136,-5050.0,0.000232,28]
[340556029,1729464633146,-5050.0,0.000232,29]
[340556030,1729464633155,-2536.14027108,0.000232,2]
[340556031,1729464633165,-321.87355022,0.00023273,2]
[340556032,1729464633174,-500.0,0.00023273,2]
[340556033,1729464633183,-500.0,0.00023273,2]
[340556034,1729464633193,-201.44099371,0.00023273,2]
[340556035,1729464633202,-4146.95826049,0.0002328,4]
[340556036,1729464633215,-604.98,0.0002328,4]
[340556037,1729464633278,-17318.034514,0.0002328,4]
[340556038,1729464633289,-27441.06984149,0.0002328,4]
[340556039,1729464633300,-15021.70197133,0.0002328,4]
[340556040,1729464633312,-1684.98777253,0.0002328,4]
[340556041,1729464633323,-9511.97964083,0.0002328,4]
[340556042,1729464633335,-694.05534,0.0002328,4]
[340556043,1729464633426,-43896.19886033,0.0002328,4]
[340556044,1729464633436,-53475.5405336,0.00023289,4]
[340556045,1729464633445,-8500.46250888,0.00023289,4]
[340556046,1729464633455,-106951.081067,0.0002329,4]
[340556047,1729464633464,-150.30800655,0.0002329,4]
[340556048,1729464633475,-1357.03628517,0.0002329,4]
[340556049,1729464633486,-291.26630725,0.0002329,4]
[340556050,1729464633499,-1467.87324433,0.0002329,4]
[340556051,1729464633510,-654.85,0.0002329,4]
[340556052,1729464633534,-1157.66053093,0.0002329,4]
[340556053,1729464633545,-1709.87048133,0.0002329,4]
[340556054,1729464638353,-229.876,0.00016698,2]
[340556055,1729464638363,-263.558,0.00016698,2]
[340556056,1729464638373,-150.0,0.00019698,2]
[340556057,1729464638383,-705.977646,0.0002329,4]
[340556058,1729464638418,-7457.51635288,0.0002329,4]
[340556059,1729464638430,-3125.94448,0.0002329,4]
[340556060,1729464638442,-628.38999299,0.0002329,4]
[340556061,1729464638454,-364.55288824,0.0002329,4]
[340556062,1729464638466,-3365.95,0.0002329,4]
[340556063,1729464638478,-665.04,0.0002329,4]
[340556064,1729464638570,-40651.23260093,0.0002329,4]
[340556065,1729464638579,-151.53,0.0002329,2]
[340556066,1729464638590,-151.53,0.0002329,2]
[340556067,1729464638599,-151.53,0.0002329,2]
[340556068,1729464638609,-375.0,0.00023298,2]
[340556069,1729464638619,-150.01,0.00023299,2]
[340556070,1729464638630,-1950.29699677,0.00023299,2]
[340556071,1729464638639,-500.0,0.00023299,2]
[340556072,1729464638648,-472.16786513,0.00023299,2]
[340556073,1729464638658,-615.0,0.00023299,2]
[340556074,1729464638667,-10000.0,0.000233,2]
[340556075,1729464638676,-152814.64685997,0.000233,16]
[340556076,1729464638715,-1570694.38264745,0.000233,16]
[340556077,1729464638724,-230903.84836852,0.000233,5]
[340556078,1729464638744,-2375505.04690505,0.000233,5]
[340556079,1729464638755,-9473641.10748607,0.000233,5]
[340556080,1729464638791,-70603.35621761,0.000233,5]
[340556081,1729464638825,-1066.57999999,0.000233,5]
[340556082,1729464638861,-2014.16099984,0.000233,5]
[340556091,1729464640354,-550.0,0.000233,5]
[340556092,1729464640402,-743.47104326,0.000233,5]
[340556093,1729464640581,-281.157,0.00016698,2]
[340556094,1729464640591,-174.8183375,0.000233,5]
[340556095,1729464640603,-1342.46633758,0.000233,5]
[340556115,1729464643385,-366.36349956,0.000233,5]
[340556116,1729464643402,-3064.55539224,0.000233,5]
[340556117,1729464643416,-730.07140233,0.000233,5]
[340556118,1729464643430,-652.62529538,0.000233,5]
[340556119,1729464643444,-2802.70829416,0.000233,5]
[340556120,1729464643464,-4246.81921635,0.000233,5]
[340556121,1729464643477,-942.316296,0.000233,5]
[340556122,1729464643491,-21219.02850396,0.000233,5]
[340556123,1729464643508,-20464.29,0.000233,5]
[340556124,1729464643558,-12620.96804001,0.000233,5]
[340556125,1729464643571,-562.6023957,0.000233,5]
[340556126,1729464643585,-1158.742153,0.000233,5]
[340556127,1729464643598,-4999.92000036,0.000233,5]
[340556128,1729464643612,-682906.45381553,0.000233,5]
[340556129,1729464643623,-861.14,0.000233,14]
[340556130,1729464643634,-416.0,0.000233,6]
[340556131,1729464643645,-298.955651,0.000233,7]
[340556132,1729464643655,-151.0,0.000233,7]
[340556133,1729464643666,-151.0,0.000233,7]
[340556134,1729464643677,-151.0,0.000233,7]
[340556135,1729464643687,-151.0,0.000233,7]
[340556137,1729464643698,-151.0,0.000233,7]
[340556139,1729464643711,-151.0,0.000233,7]
[340556140,1729464643722,-309.063997,0.000233,7]
[340556142,1729464643733,-151.0,0.000233,7]
[340556144,1729464643743,-309.063997,0.000233,7]
[340556145,1729464643754,-151.0,0.000233,7]
[340556146,1729464643764,-151.0,0.000233,7]
[340556147,1729464643777,-181.0,0.000233,2]
[340556148,1729464643804,-151.0,0.000233,7]
[340556149,1729464643815,-153.34457,0.000233,7]
[340556150,1729464643827,-151.0,0.000233,7]
[340556151,1729464643840,-151.0,0.000233,7]
[340556152,1729464643851,-151.0,0.000233,7]
[340556153,1729464643862,-151.0,0.000233,7]
[340556154,1729464643873,-247.824042,0.000233,7]
[340556155,1729464643883,-151.0,0.000233,7]
[340556156,1729464643894,-247.824042,0.000233,7]
[340556158,1729464643905,-151.0,0.000233,7]
[340556160,1729464643921,-151.0,0.000233,7]
[340556162,1729464643932,-151.0,0.000233,7]
[340556164,1729464643943,-151.0,0.000233,7]
[340556166,1729464643954,-151.0,0.000233,7]
[340556168,1729464643965,-151.0,0.000233,7]
[340556170,1729464643975,-600.0,0.000233,9]
[340556172,1729464643986,-600.0,0.000233,9]
[340556174,1729464643997,-609.19642618,0.000233,9]
[340556176,1729464644008,-600.0,0.000233,9]
[340556177,1729464644024,-600.0,0.000233,9]
[340556178,1729464644035,-600.0,0.000233,9]
[340556179,1729464644046,-600.0,0.000233,9]
[340556180,1729464644058,-600.0,0.000233,9]
[340556181,1729464644068,-600.0,0.000233,9]
[340556182,1729464644079,-600.0,0.000233,9]
[340556183,1729464644090,-600.0,0.000233,9]
[340556184,1729464644102,-600.0,0.000233,9]
[340556185,1729464644112,-600.0,0.000233,9]
[340556186,1729464644124,-445.93174204,0.00023307,2]
[340556187,1729464644135,-10883.57417695,0.00023408,2]
[340556188,1729464644675,-3675.26666575,0.00023408,2]
[340556189,1729464644686,-1742.43809986,0.00023408,2]
[340556190,1729464644699,-1478.55135715,0.00023408,2]
[340556191,1729464644736,-281.326473,0.00023408,2]
[340556192,1729464644749,-436.44200597,0.00023408,2]
[340556193,1729464644764,-782.77998016,0.00023408,2]
[340556194,1729464644779,-387.0104315,0.00023408,2]
[340556195,1729464644793,-548.79774281,0.00023408,2]
[340556203,1729464646223,-150.188,0.00016698,2]
[340556204,1729464646233,-150.0,0.00019698,2]
[340556205,1729464646243,-507.0,0.00023299,2]
[340556206,1729464646253,-136.13062009,0.00023408,2]
[340556207,1729464646497,-588.94,0.00023408,2]
[340556208,1729464646509,-7874.96601383,0.00023408,2]
[340556209,1729464646524,-734.01641473,0.00023408,2]
[340556210,1729464646538,-55714.52610184,0.00023408,2]
[340556211,1729464646550,-3351.97712188,0.00023408,2]
[340556212,1729464646588,-812.74759037,0.00023408,2]
[340556213,1729464646600,-872.82261706,0.00023408,2]
[340556214,1729464646611,-11728.4416875,0.00023408,2]
[340556215,1729464646623,-3342.29419485,0.00023408,2]
[340556216,1729464646633,-5813.4233061,0.00023408,2]
[340556217,1729464646643,-445.93174204,0.00023424,2]
[340556218,1729464646653,-445.93174204,0.00023542,2]
[340556219,1729464646663,-14053.04463493,0.0002388,2]
[340556220,1729464646672,-150.0,0.0002388,2]
[340556221,1729464646682,-150.0,0.0002388,2]
[340556222,1729464646692,-150.0,0.0002388,2]
[340556223,1729464646701,-500.0,0.0002388,2]
[340556224,1729464646712,-150.0,0.0002388,2]
[340556225,1729464646722,-500.0,0.0002388,2]
[340556226,1729464646731,-224.63,0.00024,14]
[340556227,1729464646741,-600.0,0.00024,2]
[340556228,1729464646750,-200.0,0.00024049,2]
[340556229,1729464646760,-894.61,0.00024127,2]
[340556230,1729464646770,-500.0,0.000242,5]
[340556231,1729464646781,-500.32678096,0.000242,6]
[340556232,1729464646791,-206.86,0.00024225,2]
[340556233,1729464646801,-5800.0,0.00024266,2]
[340556234,1729464646811,-166.08206,0.00024266,7]
[340556236,1729464646820,-151.0,0.00024266,7]
[340556237,1729464646830,-151.0,0.00024266,7]
[340556238,1729464646839,-204.34408879,0.00024273,2]
[340556239,1729464646848,-509.82005424,0.00024273,2]
[340556240,1729464646858,-500.0,0.00024273,2]
[340556241,1729464646867,-500.0,0.00024273,2]
[340556242,1729464646876,-2311.874623,0.00024275,2]
[340556243,1729464646888,-2231.16556937,0.00024275,2]
[340556244,1729464646906,-1256.95980763,0.00024275,2]
[340556245,1729464646916,-2672.15382837,0.00024283,2]
[340556246,1729464646927,-603.28558204,0.00024283,2]
[340556247,1729464646980,-2524.56058959,0.00024283,2]
[340556248,1729464646990,-800.0,0.00024283,2]
[340556249,1729464647000,-5800.0,0.00024292,2]
[340556250,1729464647009,-698325.62738099,0.00024293,4]
[340556251,1729464647024,-94494.96865204,0.00024293,4]
[340556252,1729464647388,-63927.11517248,0.00024293,4]
[340556253,1729464647400,-490.57776129,0.00024293,4]
[340556254,1729464647412,-523.99919778,0.00024293,4]
[340556255,1729464647424,-35612.35319536,0.00024293,4]
[340556256,1729464647436,-2041.65220829,0.00024293,4]
[340556257,1729464647447,-58529.23533891,0.00024293,4]
[340556258,1729464647457,-242301.81944159,0.00024293,4]
[340556259,1729464647467,-152.324112,0.00024293,7]
[340556260,1729464647476,-151.0,0.00024293,7]
[340556261,1729464647486,-151.0,0.00024293,7]
[340556262,1729464647496,-152.000336,0.00024293,7]
[340556263,1729464647505,-151.0,0.00024293,7]
[340556264,1729464647515,-151.0,0.00024293,7]
[340556265,1729464647524,-151.0,0.00024293,7]
[340556266,1729464647535,-151.0,0.00024293,7]
[340556267,1729464647544,-151.0,0.00024293,7]
[340556268,1729464647554,-151.0,0.00024293,7]
[340556269,1729464647564,-151.0,0.00024293,7]
[340556270,1729464647574,-151.0,0.00024293,7]
[340556271,1729464647584,-151.0,0.00024293,7]
[340556272,1729464647593,-195.895123,0.00024293,7]
[340556273,1729464647603,-309.063997,0.00024293,7]
[340556274,1729464647612,-309.063997,0.00024293,7]
[340556275,1729464647622,-171.218676,0.00024293,7]
[340556276,1729464647631,-309.063997,0.00024293,7]
[340556277,1729464647641,-309.063997,0.00024293,7]
[340556278,1729464647651,-151.0,0.00024293,7]
[340556279,1729464647661,-173.172663,0.00024293,7]
[340556280,1729464647670,-151.0,0.00024293,7]
[340556281,1729464647680,-183.82726467,0.00024293,7]
[340556282,1729464647690,-151.0,0.00024293,7]
[340556283,1729464647699,-288.207636,0.00024293,7]
[340556284,1729464647709,-151.0,0.00024293,7]
[340556285,1729464647718,-179.233517,0.00024293,7]
[340556286,1729464647728,-151.0,0.00024293,7]
[340556287,1729464647737,-151.0,0.00024293,7]
[340556288,1729464647747,-151.0,0.00024293,7]
[340556289,1729464647757,-151.0,0.00024293,7]
[340556290,1729464647767,-151.0,0.00024293,7]
[340556291,1729464647778,-151.0,0.00024293,7]
[340556292,1729464647787,-247.824042,0.00024293,7]
[340556293,1729464647797,-247.824042,0.00024293,7]
[340556294,1729464647806,-151.0,0.00024293,7]
[340556295,1729464647816,-151.0,0.00024293,7]
[340556296,1729464647825,-247.824042,0.00024293,7]
[340556297,1729464647835,-247.824042,0.00024293,7]
[340556298,1729464647844,-151.0,0.00024293,7]
[340556299,1729464647854,-151.0,0.00024293,7]
[340556300,1729464647864,-152.907744,0.00024293,7]
[340556301,1729464647873,-378553.25346055,0.00024295,4]
[340556302,1729464647899,-3204.02547468,0.00024295,4]
[340556303,1729464648088,-1686.91343731,0.00024295,4]
[340556304,1729464648100,-743.3523116,0.00024295,4]
[340556305,1729464703876,1400.98,0.00023192,120]
[340556306,1729464797723,500.0,0.00026722,120]
[340556307,1729465006990,150.0,0.00010959,2]
[340556308,1729465007010,7.21,0.00010959,2]
[340556310,1729465502605,142.79,0.00010959,2]
[340556311,1729465502628,19.73,0.00010959,2]
[340556312,1729465558482,326.83909849,0.00027,60]
[340556313,1729465656898,167.53,0.00026863,120]
[340556314,1729465748131,-150.0,0.000117,2]
[340556315,1729465748152,-748.0,0.00015,3]
[340556316,1729465748173,-202.268,0.00016698,2]
[340556317,1729465748194,-300.0,0.00016792,2]
[340556318,1729465748215,-1150.0,0.00016793,2]
[340556319,1729465748238,-350.034748,0.00016793,2]
[340556335,1729465832413,-284.0,0.00016792,2]
[340556337,1729465832423,-330.0,0.00016796,2]
[340556339,1729465832432,-3061.95147958,0.00016797,2]
[340556342,1729465832443,-39481.17498078,0.00016797,2]
[340556344,1729465832452,-201.826,0.00016797,2]
[340556346,1729465832461,-560.0,0.00016797,2]
[340556348,1729465832470,-162.0132543,0.00016797,2]
[340556350,1729465832485,-1082.9867457,0.00016797,2]
[340556352,1729465832495,-775.59992517,0.00016797,2]
[340556355,1729465832527,-36.40007483,0.00016797,2]
[340556356,1729465832537,-450.0,0.00016797,2]
[340556357,1729465832546,-936.0,0.00016797,2]
[340556358,1729465832556,-666.725,0.00016797,2]
[340556359,1729465832565,-937.69715299,0.00016797,2]
[340556360,1729465832576,-1385.4,0.00016797,2]
[340556361,1729465832716,-694.386,0.00016797,2]
[340556363,1729465832728,-339.51684701,0.00016797,2]
[340556365,1729465832737,-1909.0,0.00016797,2]
[340556367,1729465832746,-809.0,0.00016797,2]
[340556368,1729465832755,-5886.0,0.00017376,2]
[340556369,1729465832765,-150.0,0.00017376,2]
[340556370,1729465832774,-13184.965,0.00017376,2]
[340556371,1729465832783,-499.99,0.00019726,2]
[340556372,1729465832793,-150.0,0.0002,2]
[340556373,1729465832802,-3566.15,0.00020419,2]
[340556374,1729465832811,-1453.24,0.00021424,2]
[340556375,1729465832821,-217.43,0.00021452,2]
[340556376,1729465832830,-459.7,0.00021474,2]
[340556377,1729465832839,-500.0,0.00021474,2]
[340556378,1729465832853,-12614.09,0.00021479,2]
[340556379,1729465832862,-167.53,0.00021491,2]
[340556380,1729465832872,-200.0,0.00021491,2]
[340556381,1729465832882,-200.0,0.00021505,2]
[340556383,1729465832891,-150.0,0.00021572,2]
[340556385,1729465832900,-14950.86,0.00021575,2]
[340556386,1729465832909,-480.0,0.00021576,2]
[340556388,1729465832918,-250.0,0.00021648,2]
[340556390,1729465832928,-380.53,0.00021648,2]
[340556391,1729465832937,-217.71,0.00021705,2]
[340556393,1729465832946,-250.0,0.00021745,2]
[340556395,1729465832955,-2751.0,0.00021843,2]
[340556397,1729465832965,-250.0,0.00021846,2]
[340556398,1729465832974,-1500.0,0.00021873,2]
[340556400,1729465832984,-1182.5,0.00021918,2]
[340556402,1729465832993,-234.3,0.00021966,2]
[340556404,1729465833003,-183.23,0.0002204,2]
[340556405,1729465833012,-1294.8804,0.00022059,2]
[340556407,1729465833022,-4247.6888,0.00022059,2]
[340556409,1729465833031,-200.0,0.00022094,2]
[340556410,1729465833041,-341.41,0.00022157,2]
[340556412,1729465833051,-2515.68389391,0.00022224,2]
[340556414,1729465833061,-520.0,0.00022324,2]
[340556415,1729465833071,-2515.68389385,0.00022514,2]
[340556416,1729465833080,-150.2,0.00022563,2]
[340556417,1729465833090,-169.73,0.00022662,2]
[340556418,1729465833104,-2515.68389385,0.00022803,2]
[340556419,1729465833114,-202.12,0.00022944,2]
[340556420,1729465833124,-167.69,0.00023005,2]
[340556421,1729465833134,-251.232,0.00023071,2]
[340556422,1729465833144,-2515.68389385,0.00023093,2]
[340556423,1729465833154,-183.54,0.00023157,2]
[340556424,1729465833163,-375.0,0.00023299,2]
[340556425,1729465833173,-182.73685304,0.000233,2]
[340556426,1729465833183,-600.0,0.000233,9]
[340556427,1729465833192,-600.0,0.000233,9]
[340556428,1729465833201,-600.0,0.000233,9]
[340556429,1729465833210,-600.0,0.000233,9]
[340556430,1729465833220,-600.0,0.000233,9]
[340556431,1729465833230,-600.0,0.000233,9]
[340556432,1729465833240,-600.0,0.000233,9]
[340556433,1729465833250,-600.0,0.000233,9]
[340556434,1729465833260,-600.0,0.000233,9]
[340556435,1729465833270,-600.0,0.000233,9]
[340556436,1729465833280,-2515.68389385,0.00023383,2]
[340556437,1729465833290,-167.0,0.00023454,2]
[340556438,1729465833299,-2515.68389385,0.00023672,2]
[340556439,1729465833310,-200.0,0.000237,8]
[340556440,1729465833319,-1000.0,0.00023709,2]
[340556441,1729465833329,-500.0,0.000238,8]
[340556442,1729465833341,-1139.22994355,0.00023809,2]
[340556443,1729465833355,-700.0,0.000239,8]
[340556444,1729465833365,-2515.68389385,0.00023962,2]
[340556445,1729465833375,-277.76280656,0.00024,10]
[340556446,1729465833386,-565.13372106,0.00024095,4]
[340556447,1729465833397,-565.13372106,0.00024095,4]
[340556448,1729465833406,-6536.2372,0.00024095,2]
[340556449,1729465833417,-2644.2863,0.00024095,2]
[340556450,1729465833427,-7500.0,0.00024095,2]
[340556451,1729465833437,-1600.0,0.00024142,5]
[340556452,1729465833446,-928.55,0.00024175,2]
[340556453,1729465833456,-928.55,0.00024175,2]
[340556454,1729465833466,-928.55,0.00024175,2]
[340556455,1729465833476,-37632.60560664,0.00024185,4]
[340556480,1729465839928,-865.1330739,0.00017376,2]
[340556481,1729465839939,-217.8669261,0.00017376,2]
[340556482,1729465839949,-33420.79812003,0.00024185,4]
[340556483,1729465839960,-632.38613512,0.00024185,4]
[340556484,1729465839971,-3084.04209528,0.00024185,4]
[340556485,1729465839982,-1001.31088028,0.00024185,4]
[340556486,1729465839994,-544.38170658,0.00024185,4]
[340556487,1729465840005,-22317.31707115,0.00024185,4]